[Event "Hungarian Youth-ch U18 2022"]
[Site "Eger"]
[Date "2022.07.24"]
[Round "2.1"]
[White "Forgacs, Attila Jr."]
[Black "Virag, Balint"]
[Result "1-0"]
[ECO "C82"]
[WhiteElo "2215"]
[BlackElo "2164"]
[Annotator "TA"]
[PlyCount "131"]
[EventDate "2022.07.21"]
[EventType "tourn"]
[EventCountry "HUN"]
[SourceTitle "playchess.com"]
[Source "ChessBase"]
[SourceQuality "1"]
[TimeControl "40/5400+30:1800+30"]

{[%evp 22,131,20,13,13,12,18,28,14,14,16,20,18,0,0,-6,0,-17,-12,-27,0,0,0,0,0,0,0,0,0,-1,0,-13,0,0,66,71,79,58,79,77,79,79,85,79,79,83,87,70,104,84,103,95,81,72,72,80,94,76,102,0,93,89,95,88,123,125,131,130,221,216,191,198,197,164,143,135,281,281,256,233,223,58,51,58,59,8,8,8,8,8,8,12,12,14,465,301,29966,29967,29969,29970,29972,29973,29973,29974,29975,29976,29976,29976,29977,29976,29980,29981]} 1. e4 {[%emt 0:00:33]} e5 {[%emt 0:01:04]} 2. Nf3 {[%emt 0:00:05]} Nc6 {[%emt 0:00:12]} 3. Bb5 {[%emt 0:00:05]} a6 {[%emt 0:00:12]} 4. Ba4 {[%emt 0:00:09]} Nf6 {[%emt 0:00:10]} 5. O-O {[%emt 0:00:15]} Nxe4 {[%emt 0:00:14]} 6. d4 {[%emt 0:00:12]} b5 {[%emt 0:00:15]} 7. Bb3 {[%emt 0:00:04]} d5 {[%emt 0:00:08]} 8. dxe5 {[%emt 0:00:17]} Be6 {[%emt 0:00:15]} 9. c3 {[%emt 0:00:22]} Bc5 {[%emt 0:01:07]} 10. Qd3 {[%emt 0:01:08]} O-O {[%emt 0:01:18]} 11. Be3 {[%emt 0:00:36]} f6 {[%emt 0:01:16]} 12. exf6 {[%emt 0:06:04]} Qxf6 {[%emt 0:07:18] C82: Open Ruy Lopez: 9 c3 without 9...Be7.} 13. Nbd2 {[%emt 0:01:29]} Bxe3 {[%emt 0:08:38]} 14. Qxe3 {[%emt 0:00:48]} Nxd2 {[%emt 0:03:14] White has an edge.} 15. Qxd2 {[%emt 0:00:38]} Rad8 {[%emt 0:25:21]} 16. Nd4 {[%emt 0:21:58] has lost popularity (16.Rfe1).} Bf7 {[%emt 0:02:55]} 17. Nxc6 {[%emt 0:06:47]} Qxc6 {[%emt 0:00:11] [#]} 18. Rfe1 $146 {[%emt 0:01:57]} ({Predecessor:} 18. a4 Qd6 19. Rfd1 Qb6 20. axb5 axb5 21. Bc2 c5 22. b4 cxb4 23. cxb4 d4 24. Bd3 Bc4 25. Qc2 Bxd3 26. Qxd3 Qf6 27. f3 {½-½ (27) Hartmann,L (2314)-Turczynski,M (2256) ICCF email 2007}) 18... Qd6 {[%emt 0:04:07]} 19. Qg5 {[%emt 0:14:43]} h6 {[%emt 0:06:17]} 20. Qe7 {[%emt 0:04:30]} Rfe8 {[%emt 0:12:11]} 21. Qxd6 {[%emt 0:01:28]} Rxd6 {[%emt 0:00:10]} 22. Rxe8+ {[%emt 0:03:24]} Bxe8 $11 {[%emt 0:00:10][%mdl 4096] Endgame KRB-KRB} 23. f3 {[%emt 0:01:37]} Kf8 {[%emt 0:05:29]} 24. Rd1 {[%emt 0:01:17]} Bf7 {[%emt 0:00:37]} 25. Kf2 {[%emt 0:00:57]} Ke7 {[%emt 0:00:47]} 26. Rd2 {[%emt 0:03:40]} c5 {[%emt 0:01:16]} 27. f4 {[%emt 0:04:09]} d4 {[%emt 0:08:27]} (27... a5 $11) 28. Bxf7 $1 $14 {[%emt 0:02:31]} Kxf7 {[%emt 0:01:16]} 29. cxd4 {[%emt 0:00:25]} cxd4 {[%emt 0:01:43] KR-KR} 30. Kf3 $1 {[%emt 0:01:09]} Rc6 {[%emt 0:03:05]} 31. Ke4 {[%emt 0:01:33]} Ke6 {[%emt 0:01:59]} 32. Kxd4 {[%emt 0:03:12]} Rc4+ {[%emt 0:00:24]} 33. Ke3 {[%emt 0:00:46]} Rc1 {[%emt 0:00:19]} 34. b3 {[%emt 0:04:00]} Re1+ {[%emt 0:01:00]} 35. Kf3 {[%emt 0:00:32] aiming for Re2+.} Rf1+ {[%emt 0:00:24]} 36. Rf2 {[%emt 0:01:27]} Rc1 {[%emt 0:00:30]} 37. g4 {[%emt 0:01:17]} g6 {[%emt 0:00:46] Against f5+} 38. Re2+ {[%emt 0:02:21]} Kf7 {[%emt 0:02:04]} 39. Ke4 {[%emt 0:04:01]} Rg1 {[%emt 0:00:53]} 40. Kf3 {[%emt 0:00:00]} (40. h3 $16) 40... Rf1+ {[%emt 0:00:00]} (40... Rc1 $1 $11 {keeps the balance.}) 41. Rf2 $16 {[%emt 0:02:30]} Rc1 {[%emt 0:01:05]} 42. Ke4 {[%emt 0:07:17]} h5 {[%emt 0:15:42]} 43. gxh5 {[%emt 0:03:14]} gxh5 {[%emt 0:00:07]} 44. Rd2 {[%emt 0:00:32]} Ke6 {[%emt 0:03:26]} (44... Rc3 $16 45. Rd7+ Kf8) 45. f5+ $18 {[%emt 0:02:07]} Ke7 {[%emt 0:00:45]} 46. Kf4 {[%emt 0:00:21]} Rg1 {[%emt 0:01:25]} 47. Re2+ {[%emt 0:00:54]} Kf7 {[%emt 0:00:13]} 48. Rc2 {[%emt 0:00:18]} a5 {[%emt 0:00:44]} (48... h4 $16 {was worth a try.} 49. Rd2 Ke7 50. Re2+ Kf7) 49. Rc7+ {[%emt 0:01:35]} Kf6 {[%emt 0:00:06]} 50. Rc6+ {[%emt 0:00:26]} Kf7 {[%emt 0:00:28] [#]} 51. Rb6 $2 {[%emt 0:02:54]} (51. Ra6 $1 $18) 51... Rg2 {[%emt 0:01:47]} 52. Rxb5 {[%emt 0:01:14] Threatens to win with a4.} Rxa2 {[%emt 0:00:21]} 53. Kg5 {[%emt 0:02:45]} (53. Rb7+ $1 $14 Kf6 54. Rb6+ Kf7 55. h4) 53... Rg2+ $11 {[%emt 0:01:57]} 54. Kxh5 {[%emt 0:01:06]} Rxh2+ {[%emt 0:00:05]} 55. Kg5 {[%emt 0:00:10]} Rg2+ {[%emt 0:00:58]} 56. Kf4 {[%emt 0:00:07]} Ra2 {[%emt 0:00:15]} 57. Ke5 {[%emt 0:03:08]} a4 $2 {[%emt 0:05:12][%mdl 8192]} (57... Re2+ $11 {and Black stays safe.} 58. Kd4 Ra2) 58. Rb7+ $18 {[%emt 0:00:49]} Ke8 $2 {[%emt 0:00:46]} (58... Kg8 $18 59. b4 a3) 59. bxa4 {[%emt 0:05:57] White mates.} Rxa4 {[%emt 0:00:07] [#]} 60. Kf6 $1 {[%emt 0:00:19]} Ra1 {[%emt 0:05:58]} 61. Rb8+ {[%emt 0:00:21]} Kd7 {[%emt 0:00:01]} 62. Kf7 {[%emt 0:00:34]} Rg1 {[%emt 0:00:36]} 63. f6 {[%emt 0:00:14]} Rg2 {[%emt 0:00:43]} 64. Rb1 {[%emt 0:00:25]} Rd2 {[%emt 0:00:45]} 65. Rg1 {[%emt 0:00:34]} Rd3 {[%emt 0:01:06]} 66. Kg8 {[%emt 0:00:57] Weighted Error Value: White=0.10 (very precise) /Black=0.39} 1-0

[Event "Hungarian Youth-ch U18 2022"]
[Site "Eger"]
[Date "2022.07.24"]
[Round "2.2"]
[White "Karacsonyi, Gellert"]
[Black "Reviczki, Roland"]
[Result "1-0"]
[ECO "B33"]
[WhiteElo "2338"]
[BlackElo "2160"]
[Annotator "TA"]
[PlyCount "63"]
[EventDate "2022.07.21"]
[EventType "tourn"]
[EventCountry "HUN"]
[SourceTitle "playchess.com"]
[Source "ChessBase"]
[SourceQuality "1"]
[TimeControl "40/5400+30:1800+30"]

{[%evp 25,63,47,62,54,127,125,130,128,143,144,141,90,104,84,100,103,177,187,206,198,180,196,197,203,203,202,206,203,209,208,199,197,275,273,655,645,722,710,689,593]} 1. e4 {[%emt 0:00:33]} c5 {[%emt 0:00:40]} 2. Nf3 {[%emt 0:00:09]} Nc6 {[%emt 0:00:06]} 3. d4 {[%emt 0:00:08]} cxd4 {[%emt 0:00:06]} 4. Nxd4 {[%emt 0:00:09]} Nf6 {[%emt 0:00:06]} 5. Nc3 {[%emt 0:00:12]} e5 {[%emt 0:00:08]} 6. Ndb5 {[%emt 0:01:27]} d6 {[%emt 0:00:08]} 7. Bg5 {[%emt 0:00:32]} a6 {[%emt 0:00:09]} 8. Na3 {[%emt 0:00:09]} b5 {[%emt 0:00:09]} 9. Bxf6 {[%emt 0:00:24]} gxf6 {[%emt 0:00:07]} 10. Nd5 {[%emt 0:00:21]} f5 {[%emt 0:00:10]} 11. Bd3 {[%emt 0:02:44]} Be6 {[%emt 0:02:41]} 12. O-O {[%emt 0:02:43]} Bg7 {[%emt 0:00:22]} 13. Qh5 {[%emt 0:03:02]} Rc8 {[%emt 0:16:58]} 14. c4 {[%emt 0:14:46] [#] B33: Sicilian: Pelikan and Sveshnikov Variations.} Ne7 $146 {[%emt 0:22:46]} (14... fxe4 $14 15. Bxe4 Nd4) ({Predecessor:} 14... Nd4 15. exf5 Bxd5 16. cxd5 Qf6 17. Rac1 O-O 18. Be4 Qh6 19. Qg4 Rxc1 {0-1 (19) Galkin,A (2598)-Dobrov,V (2492) chessassistantclub.com INT 2004}) 15. Nxe7 $1 $16 {[%emt 0:32:25] 0x0.0019ea345b88dp-1022s more active pieces.} ({Inferior is} 15. cxb5 Bxd5 16. exd5 e4 $17) ({But not} 15. Qg5 $6 Rg8 $11) 15... Qxe7 {[%emt 0:00:14]} 16. exf5 {[%emt 0:02:36] White is better.} ({Resist} 16. cxb5 fxe4 17. Bxe4 d5 $14) 16... bxc4 {[%emt 0:14:22]} 17. Be2 {[%emt 0:04:18]} Bd5 {[%emt 0:02:13]} 18. Rac1 {[%emt 0:08:13]} ({White should try} 18. Rfd1 Rc5 19. Bxc4 $1 Bxc4 20. Qg4) 18... O-O {[%emt 0:04:11]} 19. Nxc4 {[%emt 0:02:18][%cal Ba3c4,Bc4e3,Be3g4][%mdl 32]} Bb7 {[%emt 0:05:47]} 20. Rc3 {[%emt 0:10:20] aiming for Rh3.} e4 {[%emt 0:04:49]} (20... d5 $16) 21. Rg3 {[%emt 0:01:21] And now Ne3 would win.} Kh8 {[%emt 0:03:55]} 22. Rh3 {[%emt 0:03:19][%csl Gh3][%cal Rh5h7]} h6 {[%emt 0:00:07]} 23. Ne3 $40 {[%emt 0:00:06][%mdl 128] Strongly threatening Ng4. White has strong attack.} d5 {[%emt 0:03:21]} 24. Rd1 {[%emt 0:04:13]} Rfd8 {[%emt 0:01:22] [#]} 25. Ng4 $1 {[%emt 0:02:03]} Rd6 {[%emt 0:01:59] Against f6} 26. f6 {[%emt 0:00:15]} Rxf6 {[%emt 0:00:14]} 27. Nxf6 {[%emt 0:00:08]} Qxf6 {[%emt 0:00:06]} 28. Rc3 {[%emt 0:01:49] Threatens to win with Rxc8+.} Rxc3 {[%emt 0:03:14]} (28... Rf8 {keeps fighting.} 29. Rc7 Qxb2) 29. bxc3 $18 {[%emt 0:00:02] Black must now prevent Rb1.} Qxc3 $2 {[%emt 0:00:34]} (29... Qe6 30. Bg4 Qe7) 30. Qxf7 {[%emt 0:00:20] White is clearly winning.} Qb2 {[%emt 0:02:29]} 31. Bg4 {[%emt 0:00:40] White wants to mate with Qe8+.} Bc6 {[%emt 0:00:37] Inhibits Qe8+.} 32. Be6 {[%emt 0:00:48] Weighted Error Value: White=0.05 (flawless) /Black=0.45} 1-0

[Event "Hungarian Youth-ch U18 2022"]
[Site "Eger"]
[Date "2022.07.24"]
[Round "2.3"]
[White "Daroczi, Donat"]
[Black "Baski, Barnabas"]
[Result "0-1"]
[ECO "C54"]
[WhiteElo "2163"]
[BlackElo "2142"]
[Annotator "TA"]
[PlyCount "98"]
[EventDate "2022.07.21"]
[EventType "tourn"]
[EventCountry "HUN"]
[SourceTitle "playchess.com"]
[Source "ChessBase"]
[SourceQuality "1"]
[TimeControl "40/5400+30:1800+30"]

{[%evp 17,98,0,0,0,32,0,21,28,20,25,27,21,28,27,17,17,12,12,18,18,18,16,18,21,41,33,44,37,38,43,86,86,102,69,60,67,137,138,112,0,81,82,87,0,22,0,0,0,0,0,0,0,0,-122,-112,-172,-163,-149,-133,-168,-165,-283,-189,-296,-276,-254,0,-181,-89,-532,-119,-504,-327,-543,-316,-531,-539,-29977,-29979,-29977,-29978,-29972,-29972]} 1. e4 {[%emt 0:00:33]} e5 {[%emt 0:00:40]} 2. Nf3 {[%emt 0:00:11]} Nc6 {[%emt 0:00:11]} 3. Bc4 {[%emt 0:00:15]} Bc5 {[%emt 0:00:16]} 4. c3 {[%emt 0:00:10]} Nf6 {[%emt 0:00:19]} 5. d4 {[%emt 0:00:23]} exd4 {[%emt 0:00:40]} 6. e5 {[%emt 0:00:08]} d5 {[%emt 0:00:26]} 7. Bb5 {[%emt 0:00:11]} Ne4 {[%emt 0:00:30]} 8. cxd4 {[%emt 0:00:13]} Bb6 {[%emt 0:00:39]} 9. Nc3 {[%emt 0:00:15]} O-O {[%emt 0:03:40]} 10. Be3 {[%emt 0:00:07] C54: Giuoco Piano: 4 c3 Nf6, main lines with 5 d4 and 5 d3.} f5 {[%emt 0:04:26]} 11. exf6 {[%emt 0:03:31] Bxc6 is the strong threat. 11.g3 is not played anymore.} Nxf6 {[%emt 0:00:23]} 12. Bxc6 {[%emt 0:10:08] The position is equal.} bxc6 {[%emt 0:00:10]} 13. Ne5 {[%emt 0:00:06] Inhibits Ng4.} Qd6 {[%emt 0:15:37]} 14. O-O $1 {[%emt 0:07:59]} Ba6 {[%emt 0:09:53]} 15. Re1 {[%emt 0:02:26]} c5 {[%emt 0:01:27]} 16. dxc5 {[%emt 0:14:01]} Bxc5 {[%emt 0:00:09]} (16... Qxe5 $2 17. cxb6 (17. Bd4 Qf4 $16) 17... axb6 18. Bc5 $1 $18 {[%mdl 512]}) 17. Bxc5 {[%emt 0:07:22]} Qxc5 {[%emt 0:02:22]} 18. Na4 {[%emt 0:00:12] Pair of Knights!} Qd6 {[%emt 0:05:07]} 19. Qd4 {[%emt 0:02:07]} Ne4 {[%emt 0:04:23]} 20. Rac1 {[%emt 0:00:45] [#] Inhibits c5. Strongly threatening Rc6.} Rae8 $146 {[%emt 0:06:04][%cal Ba8e8,Be8e5,Be5g5,Bg5g6,Bg6c6,Bc6c1,Bc1h1][%mdl 32]} (20... Nxf2 $2 21. Rc6 Qd8 22. Rxa6 $18) ({Predecessor:} 20... Rxf2 21. Rxe4 Raf8 22. Ree1 R2f4 23. Qxa7 Qxe5 24. Qxa6 Qd4+ 25. Kh1 Qxa4 26. Qe6+ Kh8 27. Qxd5 {½-½ (58) Esipenko,A (2716)-Nguyen,T (2588) Krasnaya Polyana 2021}) 21. Rc6 {[%emt 0:09:10]} Qxe5 {[%emt 0:01:08]} 22. Qxe5 {[%emt 0:00:12]} Rxe5 {[%emt 0:00:02]} 23. Rxa6 {[%emt 0:00:11]} Rg5 {[%emt 0:11:28]} 24. Re2 {[%emt 0:06:11]} Rg6 {[%emt 0:03:34]} 25. Rxa7 {[%emt 0:03:55]} Rc6 {[%emt 0:00:37]} 26. g3 $1 {[%emt 0:02:13]} Rd8 {[%emt 0:06:49]} (26... Rc1+ $14 27. Kg2 Ng5) 27. Kg2 {[%emt 0:05:42]} Rc1 {[%emt 0:03:26][%cal Od5d4]} 28. f3 {[%emt 0:03:36]} (28. b4 $16) 28... Nf6 {[%emt 0:05:39]} (28... Nd6 $1 $11 {keeps the balance.}) 29. Rd2 $16 {[%emt 0:09:02]} d4 {[%emt 0:05:13] [#] Against Nc3} 30. Kf2 {[%emt 0:02:33]} (30. Nc3 $1 $16) 30... Nd5 {[%emt 0:04:38]} 31. Ra5 {[%emt 0:03:23]} Ne3 {[%emt 0:00:51]} 32. Rc5 {[%emt 0:01:28]} Rh1 {[%emt 0:01:14]} 33. Rxc7 {[%emt 0:02:15]} Rxh2+ {[%emt 0:00:09]} 34. Ke1 {[%emt 0:00:00]} Rh1+ {[%emt 0:01:44]} 35. Ke2 {[%emt 0:00:24]} (35. Kf2 $1 $11) 35... Nf1 $17 {[%emt 0:01:28] Black is much more active.} 36. Rd3 {[%emt 0:01:25]} (36. Rd1 $17 d3+ 37. Kf2 Rh2+ 38. Kg1) 36... Nxg3+ $19 {[%emt 0:00:15]} 37. Kf2 {[%emt 0:00:00]} Nf5 {[%emt 0:00:29]} 38. Kg2 {[%emt 0:03:36]} Rb1 {[%emt 0:00:44]} 39. Kh3 {[%emt 0:02:12]} (39. Rc5 $142 Rf8 40. Kf2) 39... Re8 {[%emt 0:01:50] Threatens to win with ...Rh1+.} 40. Kg4 {[%emt 0:00:00]} (40. Rc5 {is the only way for White.} g6 41. Rxf5 gxf5 42. Rxd4) 40... Ne3+ {[%emt 0:00:00]} 41. Kg3 {[%emt 0:09:01]} Nf5+ $2 {[%emt 0:08:21]} ({Better is} 41... Rf8 $19 42. Kf2 Rf1+ 43. Ke2 R8xf3) 42. Kf4 $2 {[%emt 0:01:12]} (42. Kg4 $1 $11 Ne3+ 43. Kg3) 42... g6 {[%emt 0:01:02]} (42... Nh4 $19 {( -> ...Rg1)} 43. Kg4 Rh1) 43. Rb3 $2 {[%emt 0:02:13][%mdl 8192]} (43. Nc5 $17) 43... Rh1 $2 {[%emt 0:07:42]} (43... Rg1 $19 {is more deadly. And now ...Ng3 would win.} 44. Rbb7 Nd6 45. Rg7+ Kf8) 44. Rb6 $2 {[%emt 0:03:27][%mdl 8192]} (44. Nc5 $17 {nothing else works.}) 44... d3 {[%emt 0:03:12] Hoping for ...Rh4+.} 45. Rd7 $2 {[%emt 0:00:57]} (45. Nc3 Nd4 46. Kg4) 45... Rh4+ {[%emt 0:00:25]} 46. Kg5 {[%emt 0:00:06]} Rxa4 {[%emt 0:00:42]} 47. a3 {[%emt 0:00:39]} Rd4 {[%emt 0:00:57] Black mates.} 48. Rxd4 {[%emt 0:00:29]} Nxd4 {[%emt 0:00:06]} 49. Rd6 {[%emt 0:00:10]} Ne6+ {[%emt 0:01:17] Weighted Error Value: White=0.90/Black=0.56} 0-1

[Event "Hungarian Youth-ch U18 2022"]
[Site "Eger"]
[Date "2022.07.24"]
[Round "2.4"]
[White "Somogyi, Barbara"]
[Black "Toth, Nikoletta"]
[Result "1-0"]
[ECO "C54"]
[WhiteElo "1682"]
[BlackElo "1914"]
[Annotator "TA"]
[PlyCount "107"]
[EventDate "2022.07.21"]
[EventType "tourn"]
[EventCountry "HUN"]
[SourceTitle "playchess.com"]
[Source "ChessBase"]
[SourceQuality "1"]
[TimeControl "40/5400+30:1800+30"]

{[%evp 17,107,0,-5,0,0,0,34,33,43,0,8,-14,-17,-69,-71,-71,-59,-58,-43,-101,-50,-97,-85,-87,-3,-35,86,60,185,187,138,176,109,137,201,188,179,147,229,187,251,238,273,263,349,359,424,281,433,348,259,-15,74,60,540,533,716,852,885,889,847,682,1358,956,956,949,888,825,775,766,1256,1161,5135,619,29988,29978,29990,29987,29992,29993,29993,29994,29994,29995,29995,29996,29996,29997,29997,29995,29996,29995]} 1. e4 {[%emt 0:00:32]} e5 {[%emt 0:00:34]} 2. Nf3 {[%emt 0:00:07]} Nc6 {[%emt 0:00:03]} 3. Bc4 {[%emt 0:00:11]} Bc5 {[%emt 0:00:05]} 4. c3 {[%emt 0:00:10]} Nf6 {[%emt 0:00:12]} 5. d4 {[%emt 0:00:16]} exd4 {[%emt 0:00:13]} 6. e5 {[%emt 0:00:11]} d5 {[%emt 0:00:07]} 7. Bb5 {[%emt 0:00:16]} Ne4 {[%emt 0:00:17]} 8. cxd4 {[%emt 0:00:25]} Bb6 {[%emt 0:00:31]} 9. Nc3 {[%emt 0:00:49]} O-O {[%emt 0:03:02]} 10. Bxc6 {[%emt 0:00:54] C54: Giuoco Piano: 4 c3 Nf6, main lines with 5 d4 and 5 d3.} bxc6 {[%emt 0:00:21][%cal Bb7c6,Bc6c5,Bc5c4][%mdl 32]} 11. O-O {[%emt 0:00:25]} Nxc3 {[%emt 0:14:41]} 12. bxc3 {[%emt 0:00:21] White is slightly better.} Re8 {[%emt 0:02:22] [#]} 13. Bg5 $146 {[%emt 0:06:36]} ({Predecessor:} 13. Ba3 Bf5 14. Re1 h6 15. Re3 Re6 16. Qd2 Rg6 17. Rae1 Be4 18. h3 Ba5 19. Kh2 {1-0 (42) Wolf,A (2119)-Launert,M (1790) Reinstorf 2022}) 13... Qd7 {[%emt 0:00:29]} 14. Qd3 {[%emt 0:05:06]} c5 {[%emt 0:07:23]} 15. Rfd1 {[%emt 0:11:56]} (15. dxc5 $11 Bxc5 16. Be3 Bxe3 17. Qxe3) 15... c4 $1 $15 {[%emt 0:00:22]} 16. Qd2 {[%emt 0:06:58]} Ba5 {[%emt 0:02:23]} 17. Qc2 {[%emt 0:11:18]} Re6 {[%emt 0:03:49]} 18. Rac1 {[%emt 0:05:17]} (18. Re1) (18. Bd2 $15) 18... Qe8 {[%emt 0:05:09]} ({Black should try} 18... Rg6 $17) 19. Kh1 {[%emt 0:05:07]} (19. Bd2 $15 {should be considered.}) 19... Bd7 {[%emt 0:00:54] And now ...Ba4 would win. A strong pair of Bishops.} 20. Rf1 {[%emt 0:01:43]} Qc8 {[%emt 0:00:47]} ({Better is} 20... Rb8 $17 {aiming for ...Reb6.} 21. Rb1 Reb6 22. Rxb6 axb6) 21. Nh4 $1 $11 {[%emt 0:04:40]} Rb6 {[%emt 0:03:34]} (21... c5 $15 {keeps the upper hand.}) 22. f4 $1 $16 {[%emt 0:07:28]} f6 {[%emt 0:26:30]} (22... h6 $14 23. Be7 Rab8) 23. exf6 $18 {[%emt 0:00:26]} gxf6 {[%emt 0:00:07]} 24. Bh6 {[%emt 0:01:42]} f5 {[%emt 0:05:13]} 25. Bg5 {[%emt 0:01:57] Hoping for Rce1.} Qf8 {[%emt 0:00:58]} (25... h6 $16 {was called for.}) 26. Nf3 $1 {[%emt 0:02:08]} Rab8 {[%emt 0:01:20]} 27. Qf2 {[%emt 0:03:01]} Qg7 {[%emt 0:03:21]} (27... h6 $16) 28. Ne5 {[%emt 0:04:57]} Be8 {[%emt 0:02:08]} (28... Re6 $142 29. Rfe1 Rf8) 29. Rfe1 {[%emt 0:04:21]} h6 {[%emt 0:02:10]} 30. Bh4 {[%emt 0:02:29]} Rb2 {[%emt 0:00:11]} 31. Qf3 {[%emt 0:04:26]} c6 {[%emt 0:00:06]} 32. Rg1 {[%emt 0:05:00] g4 is the strong threat.} Rxa2 {[%emt 0:02:04]} (32... h5 $142 33. Qh3 Qf8) 33. g4 {[%emt 0:02:37][%cal Bg2g4,Bg4f5,Bf5g6][%mdl 32]} Rbb2 {[%emt 0:00:15][%csl Ga2][%cal Rb2h2]} 34. Rg3 $2 {[%emt 0:02:38]} (34. Qh3 $18 Kf8 35. gxf5 Rxh2+ 36. Qxh2 Rxh2+ 37. Kxh2) 34... Rxh2+ {[%emt 0:12:01]} (34... Rf2 $1 $11 35. Qxf2 Rxf2 36. gxf5 Rxf4 $1) 35. Kg1 $14 {[%emt 0:00:06][%cal Og4f5]} Kf8 $2 {[%emt 0:00:28][%mdl 8192] [#] White leaves nothing to chance now.} (35... Rxh4 $2 36. gxf5 Rah2 37. Rxg7+ Kxg7 38. Qg3+ Kf8 39. f6 Rh1+ 40. Kg2 (40. Kf2 R4h2+ 41. Kf3 Bh5+ 42. Ng4 Bxg4+ 43. Kxg4 Rh3 $18) 40... R4h2+ 41. Qxh2 Rxh2+ 42. Kxh2 $18) (35... Rhf2 $14 36. Qxf2 Rxf2 37. Kxf2 Qb7) 36. gxf5 $1 $18 {[%emt 0:00:45]} Qh7 {[%emt 0:01:52]} (36... Rh3 37. Be7+) 37. Ng6+ {[%emt 0:00:57]} Bxg6 {[%emt 0:00:51]} 38. fxg6 {[%emt 0:00:16]} Qd7 {[%emt 0:01:00]} 39. Qh5 {[%emt 0:00:45]} Bd8 {[%emt 0:01:33]} 40. Qxh6+ {[%emt 0:00:00]} Kg8 {[%emt 0:00:00]} 41. Qh7+ $1 {[%emt 0:01:28]} Qxh7 {[%emt 0:00:25]} 42. gxh7+ {[%emt 0:00:07]} Kxh7 {[%emt 0:00:04]} 43. Bxd8 {[%emt 0:00:14]} Rhe2 {[%emt 0:00:46]} 44. f5 {[%emt 0:02:29][%cal Bf4f5,Bf5f6,Bf6f7][%mdl 32]} Re8 {[%emt 0:00:55] [#]} 45. Bf6 {[%emt 0:02:05]} (45. Rb1 $142 $1 Kh6 46. Rh3+ Kg7 47. f6+ Kg6 48. Rg3+ Kh6 49. Be7) 45... Ree2 {[%emt 0:00:36]} 46. Be5 {[%emt 0:03:13] White mates.} c5 {[%emt 0:01:47]} 47. f6 {[%emt 0:01:09]} cxd4 {[%emt 0:00:13]} 48. f7 {[%emt 0:02:53]} Rf2 {[%emt 0:00:10]} 49. Rf1 {[%emt 0:00:38]} Rxf1+ {[%emt 0:01:51]} 50. Kxf1 {[%emt 0:00:09]} Ra1+ {[%emt 0:00:05]} 51. Kg2 {[%emt 0:01:00]} Ra2+ {[%emt 0:00:10]} 52. Kf3 {[%emt 0:00:33]} Ra1 {[%emt 0:00:09]} 53. Kf4 {[%emt 0:02:49]} Rf1+ {[%emt 0:01:28]} 54. Rf3 {[%emt 0:00:08] Weighted Error Value: White=0.39/Black=0.67} 1-0

[Event "Hungarian Youth-ch U18 2022"]
[Site "Eger"]
[Date "2022.07.24"]
[Round "2.5"]
[White "Koltai, Dora"]
[Black "Buri, Kata"]
[Result "1/2-1/2"]
[ECO "B13"]
[WhiteElo "1764"]
[BlackElo "1730"]
[Annotator "NA RC COMBH"]
[PlyCount "60"]
[EventDate "2022.07.21"]
[EventType "tourn"]
[EventCountry "HUN"]
[SourceTitle "playchess.com"]
[Source "ChessBase"]
[SourceQuality "1"]
[TimeControl "40/5400+30:1800+30"]

1. e4 {[%emt 0:00:37]} c6 {[%emt 0:00:52]} 2. d4 {[%emt 0:00:10]} d5 {[%emt 0:00:09]} 3. exd5 {[%emt 0:00:12]} cxd5 {[%emt 0:00:09]} 4. Bd3 {[%emt 0:00:12]} Nc6 {[%emt 0:01:14]} 5. c3 {[%emt 0:00:08]} Nf6 {[%emt 0:00:45]} 6. Bf4 {[%emt 0:03:19]} Bg4 {[%emt 0:03:10]} 7. Qb3 {[%emt 0:01:30]} e5 {[%emt 0:04:18]} 8. dxe5 {[%emt 0:11:13]} Nh5 {[%emt 0:03:05]} 9. Be3 {[%emt 0:09:06]} Nxe5 {[%emt 0:08:10]} 10. Bb5+ {[%emt 0:04:52]} Nc6 {[%emt 0:00:59]} 11. Ne2 {[%emt 0:07:27]} a6 {[%emt 0:09:09]} 12. Bd3 {[%emt 0:02:11]} Be7 {[%emt 0:05:29]} 13. O-O {[%emt 0:03:24]} O-O {[%emt 0:01:51]} 14. Qc2 {[%emt 0:05:22]} h6 {[%emt 0:04:33]} 15. Bf5 {[%emt 0:04:52]} Bxf5 {[%emt 0:05:59]} 16. Qxf5 {[%emt 0:00:06]} Nf6 {[%emt 0:00:56]} 17. Rd1 {[%emt 0:06:57]} Qc7 {[%emt 0:03:20]} 18. Nf4 {[%emt 0:03:06]} Rad8 {[%emt 0:02:02]} 19. Ne2 {[%emt 0:09:56]} Bd6 {[%emt 0:02:30]} 20. h3 {[%emt 0:05:01]} Rfe8 {[%emt 0:05:31]} 21. Nd2 {[%emt 0:02:06]} Ne7 {[%emt 0:02:23]} 22. Qc2 {[%emt 0:02:38]} Ng6 {[%emt 0:01:48]} 23. Nf3 {[%emt 0:02:18]} Re4 {[%emt 0:04:52]} 24. Nfd4 {[%emt 0:04:23]} Rde8 {[%emt 0:06:00]} 25. Qd2 {[%emt 0:02:10]} Nh4 {[%emt 0:05:41]} 26. Rac1 {[%emt 0:03:11]} Qd7 {[%emt 0:00:52]} 27. Nf4 {[%emt 0:02:27]} Qc7 {[%emt 0:01:05]} 28. Nfe2 {[%emt 0:01:19]} Qd7 {[%emt 0:01:18]} 29. Nf4 {[%emt 0:00:29]} Qc7 {[%emt 0:00:15]} 30. Nfe2 {[%emt 0:00:32]} Qd7 {[%emt 0:00:06]} 1/2-1/2